Cogmind - Beta 14 @@@ ROGUE MODE // 2025.01.04 @ 11:08:11 Player: Iry-bot Result: Destroyed by WK-VAD(R) with Subdweller Laser Performance ------------- Evolutions (0) 0 Regions Visited (2) 400 Robots Destroyed (17) 85 Value Destroyed (545) 545 Prototype IDs (0) 0 Alien Tech Used (0) 0 Bonus (0) 0 TOTAL SCORE: 1030 Bonus ------- None Cogmind --------- Core Integrity 0/250 Matter 216/300 Energy 124/125 System Corruption 2% Temperature Cool (6) Movement Rolling (145) Ox3 Location -10/Subcaves Parts ------- > --- POWER (1) -------- Light Ion Engine > --- PROPULSION (2) --- Compact Wheel > --- UTILITY (2) ------ High-capacity Storage Unit Terrain Scanner > --- WEAPON (2) ------- Beam Cannon Grenade Launcher > --- INVENTORY (20) --- Heat Sink Signal Interpreter Seismic Detector Seismic Detector EM Pulse Gun Small Laser Scrap Shield Fragment (32) Scrap Shield Fragment (12) Peak State ------------ > --- POWER ------------ Light Nuclear Core > --- PROPULSION ------- Light Treads Light Treads > --- UTILITY ---------- High-capacity Storage Unit Terrain Scanner > --- WEAPON ----------- Small Laser Beam Cannon > --- INVENTORY -------- Light Ion Engine Wheel Compact Wheel Heat Sink Signal Interpreter Seismic Detector Seismic Detector EM Pulse Gun Small Laser Grenade Launcher [Rating: 10] Favorites ----------- Power Light Ion Engine Engine Light Ion Engine Power Core Light Nuclear Core Propulsion Light Treads Treads Light Treads Wheel Compact Wheel Utility Terrain Scanner Device Terrain Scanner Storage Small Storage Unit Weapon Light Assault Rifle Energy Gun EM Pulse Gun Energy Cannon Beam Cannon Ballistic Gun Light Assault Rifle Launcher Grenade Launcher Build | -11 -10 -10 ------- Run | Yrd Mat Sub Slots Evolved . | . . . Power . | . . . Propulsion . | . . . Utility . | . . . Weapon . | . . . Parts Attached 22 | 6 9 7 Power 5 | 1 2 2 Engine 3 | 1 1 1 Core 2 | . 1 1 Reactor . | . . . Propulsion 6 | 2 1 3 Treads 3 | 2 1 . Leg . | . . . Wheel 3 | . . 3 Hover . | . . . Flight . | . . . Utility 5 | 1 4 . Device 1 | . 1 . Storage 4 | 1 3 . Processor . | . . . Hackware . | . . . Protection . | . . . Artifact . | . . . Weapon 6 | 2 2 2 Energy Gun 2 | . 2 . Energy Cannon 1 | . . 1 Ballistic Gun 2 | 2 . . Ballistic Cannon . | . . . Launcher 1 | . . 1 Special Weapon . | . . . Impact Weapon . | . . . Slashing Weapon . | . . . Piercing Weapon . | . . . Special Melee Weapon . | . . . Unidentified Prototypes . | . . . Corrupted Parts 1 | . . 1 System Corruption 2 | . . 2 Parts Lost 12 | . 4 8 Power 3 | . 1 2 Propulsion 5 | . 1 4 Utility . | . . . Weapon 4 | . 2 2 Highest Loss Streak 7 | . 4 7 To Critical Strikes . | . . . Average Slot Usage (%) 95 | . 97 84 Engine 10 | . 9 12 Core 3 | . 4 . Treads 22 | . 27 1 Wheel 2 | . . 12 Device 12 | . 12 14 Storage 14 | . 14 14 Energy Gun 9 | . 11 1 Energy Cannon 2 | . . 13 Ballistic Gun 13 | . 16 . Launcher 2 | . . 13 Peak Build Rating 10 | 6 9 10 Average Rating 7 | 4 7 7 On Entrance 4 | . 6 8 Naked Turns . | . . . Heaviest Build 50 | 10 47 50 Greatest Support 40 | 40 40 40 Greatest Overweight (x) 15 | 3 1 15 Average Overweight (x) . | . . 2 Largest Inventory Capacity 20 | 8 20 20 Average Capacity 12 | 7 11 20 Most Carried 12 | 5 12 12 Average Carried 7 | 3 7 8 Final Capacity 20 | 8 20 20 Final Carried 12 | 4 12 8 Class Distribution -------------------- 100% | Mutant Dominant Class ---------------- Mutant | -10/Materials Mutant | -10/Subcaves Resources | -11 -10 -10 ----------- Run | Yrd Mat Sub Matter Collected 481 | 259 166 56 Remotely . | . . . Salvage Created 679 | . 569 110 Parts 37 | . 32 5 Haulers Intercepted 2 | . 2 . Recyclers Shooed 1 | . 1 . Parts Field Recycled . | . . . Retrieved Matter . | . . . Parts Self-Destructed 3 | . . 3 Prevented . | . . . Kills | -11 -10 -10 ------- Run | Yrd Mat Sub Combat Hostiles Destroyed 14 | . 10 4 Guns 10 | . 10 . Cannons 1 | . . 1 AOE 3 | . . 3 Classes Destroyed 4 | . 3 1 Worker 1 | . 1 . Hauler 2 | . 2 . Grunt 12 | . 10 2 Subdweller 2 | . . 2 Best Kill Streak 2 | . 2 2 Combat Bots Only 2 | . 2 2 Max Kills in Single Turn 1 | . 1 1 Gunslinging . | . . . Exploded 1 | . . 1 Melee . | . . . Uniques/NPCs Destroyed . | . . . Combat | -11 -10 -10 -------- Run | Yrd Mat Sub Hostile Shots Fired 120 | . 91 29 Missed 40 | . 30 10 Damage Taken 1261 | . 785 476 Core 264 | . 174 90 Absorbed by Shields . | . . . Regen/Repaired (Parts) 1 | . 1 . Core Remaining (%) 100 | 100 . . Volleys Fired 87 | . 74 13 Largest 2 | . 2 2 Hottest 100 | . 80 100 Shots Fired 175 | . 148 27 Gun 154 | . 148 6 Cannon 11 | . . 11 Launcher 10 | . . 10 Special . | . . . Kinetic 100 | . 100 . Thermal 37 | . 22 15 Explosive 10 | . . 10 Electromagnetic 28 | . 26 2 Robot Hit Streak 13 | . 7 13 Robot Miss Streak 5 | . 5 1 Penetration Max . | . . . Secondary Targets . | . . . Shots Hit Robots 103 | . 84 19 Core Hits 39 | . 32 7 Critical Kills 1 | . 1 . Critical Parts Destroyed . | . . . Critical Strikes 1 | . 1 . Destroy 1 | . 1 . Melee Attacks . | . . . Impact . | . . . Slashing . | . . . Piercing . | . . . Sneak Attacks . | . . . Combat Hostiles . | . . . Follow-up Attacks . | . . . Damage Inflicted 1295 | . 857 438 Guns 844 | . 844 . Cannons 105 | . . 105 Explosions 333 | . . 333 Melee . | . . . Ramming 13 | . 13 . Kinetic 471 | . 471 . Thermal 238 | . 133 105 Explosive 333 | . . 333 Electromagnetic 240 | . 240 . Impact . | . . . Slashing . | . . . Piercing . | . . . Highest Corruption 2 | . . 2 Average Corruption 2 | . . 2 Corruption Purged . | . . . Corruption Blocked . | . . . Effects 4 | . . 4 Message Errors 1 | . . 1 Data Loss (minor) 2 | . . 2 Misfires 1 | . . 1 Overload Shots . | . . . Overflow Damage 7 | . . 7 Projectiles . | . . . Explosions 7 | . . 7 Melee . | . . . Knockbacks . | . . . Impact . | . . . Kinetic . | . . . Secondary . | . . . Self-Inflicted Damage 97 | . . 97 Shots 5 | . . 5 Rammed 6 | . 6 . Targets Rammed 6 | . 6 . Kicked . | . . . Crushed . | . . . Highest Temperature 333 | . 333 3 Average Temperature 77 | . 79 1 Received Heat Transfer 570 | . 456 114 Effects 2 | . 2 . Energy Bleed 2 | . 2 . Siege Activations . | . . . Robots Corrupted . | . . . Combat Hostiles . | . . . Parts Fried 1 | . 1 . Impact Corruptions . | . . . Robots Melted . | . . . Combat Hostiles . | . . . Parts Melted 2 | . . 2 Heat Transferred 522 | . 300 222 Parts Sabotaged . | . . . Parts Stolen . | . . . Parts Stripped . | . . . Power Chain Reactions . | . . . Alert | -11 -10 -10 ------- Run | Yrd Mat Sub Peak Influence 180 | . 180 . Initial . | . . . Average 85 | . 88 . Maximum Alert Level . | . . . Low Security (%) 100 | 100 100 . Level 1 . | . . . Level 2 . | . . . Level 3 . | . . . Level 4 . | . . . Level 5 . | . . . High Security . | . . . Max Security . | . . . Squads Dispatched 3 | . 3 . Investigation 1 | . 1 . Extermination . | . . . Reinforcement 2 | . 2 . Assault . | . . . Garrison . | . . . Intercept . | . . . Searches Triggered . | . . . Construction Impeded . | . . . Haulers Reinforced . | . . . Active Scanning Responses . | . . . Cargo Convoy Interrupts . | . . . Stealth | -11 -10 -10 --------- Run | Yrd Mat Sub Distress Signals 1 | . 1 . Communications Jammed . | . . . Distress Signals . | . . . Times Spotted 36 | . 29 7 Peak Tracking Total 4 | . 4 3 Tactical Retreats 4 | . 4 . Traps | -11 -10 -10 ------- Run | Yrd Mat Sub Traps Triggered 1 | . 1 . Indirectly . | . . . Trap Hack Attempts . | . . . Triggered . | . . . Disarmed . | . . . Reprogrammed . | . . . Reused . | . . . Traps Extracted . | . . . Installed . | . . . Triggered . | . . . Machines | -11 -10 -10 ---------- Run | Yrd Mat Sub Machines Disabled . | . . . Max in Single Turn . | . . . Machines Repaired . | . . . Machines Dismantled . | . . . Machines Sabotaged . | . . . Overloaded Fab Kills . | . . . Hacking | -11 -10 -10 --------- Run | Yrd Mat Sub Machines Accessed 9 | . 9 . Terminals 6 | . 6 . Fabricators . | . . . Repair Stations 1 | . 1 . Recycling Units 2 | . 2 . Scanalyzers . | . . . Garrison Access . | . . . Total Hacks 25 | . 25 . Successful 16 | . 16 . Failed 9 | . 9 . Catastrophic 2 | . 2 . Database Lockouts . | . . . Manual 18 | . 18 . Terminals 18 | . 18 . Fabricators . | . . . Repair Stations 3 | . 3 . Recycling Units 4 | . 4 . Scanalyzers . | . . . Garrison Access . | . . . Terminal Hacks 2 | . 2 . Branch Access Points 1 | . 1 . Alert Level 1 | . 1 . Fabricator Hacks . | . . . Repair Station Hacks 2 | . 2 . Scan Component 1 | . 1 . Repair 1 | . 1 . Recycling Unit Hacks 3 | . 3 . Report Inventory 2 | . 2 . Retrieve Components 1 | . 1 . Scanalyzer . | . . . Garrison Access Hacks . | . . . Unauthorized Hacks 9 | . 9 . Terminals 8 | . 8 . Track 1 | . 1 . Assimilate 1 | . 1 . Botnet 5 | . 5 . Operators 1 | . 1 . Fabricators . | . . . Repair Stations . | . . . Recycling Units 1 | . 1 . Recyclers 1 | . 1 . Scanalyzers . | . . . Garrison Access . | . . . Data Cores Recovered . | . . . Used . | . . . Hacking Detections 6 | . 6 . Full Trace Events 1 | . 1 . Feedback Events . | . . . Feedback Blocked . | . . . Robot Schematics Acquired . | . . . Robots Built . | . . . Authchips . | . . . Time . | . . . Total Robot Build Rating . | . . . Part Schematics Acquired . | . . . Parts Built . | . . . Authchips . | . . . Time . | . . . Total Part Build Rating . | . . . Parts Repaired 1 | . 1 . Time 26 | . 26 . Parts Recycled . | . . . Recycled Matter . | . . . Retrieved Matter . | . . . Retrieved Components 6 | . 6 . Parts Scanalyzed . | . . . Part Schematics Acquired . | . . . Parts Damaged . | . . . Bothacking | -11 -10 -10 ------------ Run | Yrd Mat Sub Used RIF Installer . | . . . Robots Hacked . | . . . Non-combat . | . . . Combat . | . . . Robot Hacks Applied . | . . . Relay Couplers Released . | . . . Fabnet Peak Effective % . | . . . Robots Rewired . | . . . Allies Hacked . | . . . Hacks Repelled . | . . . Allies | -11 -10 -10 -------- Run | Yrd Mat Sub Total Allies . | . . . Largest Group . | . . . Highest-Rated Group . | . . . Highest-Rated Ally . | . . . Total Orders . | . . . Ally Attacks . | . . . Total Damage . | . . . Kills . | . . . Allies Corrupted . | . . . Allies Melted . | . . . Intel | -11 -10 -10 ------- Run | Yrd Mat Sub Robot Analysis Total . | . . . Derelict Logs Recovered . | . . . Drone Launches . | . . . Drone Recoveries . | . . . Exploration | -11 -10 -10 ------------- Run | Yrd Mat Sub Turns Passed 2110 | 62 1650 398 Spaces Moved 1050 | 36 785 229 Core 18 | 15 . 3 Treads 811 | 21 785 5 Legs . | . . . Wheels 221 | . . 221 Hover . | . . . Flight . | . . . Fastest Speed 50 | 50 160 117 Average Speed 170 | 139 176 152 Slowest Speed 800 | 200 240 800 Overloaded Moves . | . . . Propulsion Burnouts . | . . . Robots Hopped . | . . . Cave-ins Triggered . | . . . Exploration Rate (%) 34 | 4 85 13 Regions Visited 2 Branch Regions 1 Pre-discovered Areas . | . . . Known Exits Taken . | . . . Unknown Exits Taken 2 | 1 1 . Scrap Searched . | . . . Spaces Dug . | . . . Terrain Destroyed 43 | . . 43 Melee . | . . . Projectile . | . . . AOE 43 | . . 43 Terrain Rammed . | . . . Walls Destroyed . | . . . Machines Disabled . | . . . Actions | -11 -10 -10 --------- Run | Yrd Mat Sub Total 1211 | 46 914 251 Wait 22 | . 22 . Move 1048 | 35 784 229 Hop . | . . . Pick Up 21 | 5 14 2 Fast Attach 7 | 5 1 1 Attach 11 | 1 4 6 Detach . | . . . Swap 4 | . 4 . Drop 5 | . 5 . Fire 87 | . 74 13 Melee . | . . . Ram . | . . . Kick . | . . . Crush 6 | . 6 . Escape Stasis . | . . . Rewire . | . . . Trap . | . . . Miscellaneous . | . . . Route ------- -11/Scrapyard -10/Materials (discovered 4 exits: [*Mat x2] / *Min / [*Sub]) -10/Subcaves History --------- Turn | Location | Event 18 | -11/Scrapyard | Discovered new exit (range 15) 63 | -11/Scrapyard | Entered Materials 313 | -10/Materials | Build established: Mutant 788 | -10/Materials | Discovered new exit (range 7) 845 | -10/Materials | Repaired Transport Network Coupler? 855 | -10/Materials | Identified exit to Mines 1084 | -10/Materials | Core integrity fell below 50% 1097 | -10/Materials | Lost 4 parts (1p1n2w) 1230 | -10/Materials | Discovered new exit (range 11) 1621 | -10/Materials | Discovered new exit (range 9) 1713 | -10/Materials | Entered Subcaves 1720 | -10/Subcaves | Ambushed by Subdwellers from Twisted Machinery 1732 | -10/Subcaves | Core integrity fell below 20% 1779 | -10/Subcaves | Lost 7 parts (2p3n2w) 2111 | -10/Subcaves | Destroyed by WK-VAD(R) with Subdweller Laser Last Messages --------------- Grenade Launcher. 01816_ System corrupted: Grenade Launcher misfires. [Achievement: Maybe Next Time I'll Detach My Launcher] 01816_ Sub. Monowheel destroyed. 01816_ Destroyed Sub. Monowheel. 01856_ System corrupted: Component data lost. 01930_ G-47 Trooper destroyed. 01934_ Imp. Heat Sink fries itself beyond repair. 01938_ Subatomizers dissect the Unknown Leg. 01941_ G-34 Mercenary destroyed. 01944_ System corrupted: Component data lost. 01946_ Unknown Leg fries itself beyond repair. 01949_ The unstable cave ceiling collapses. 01955_ Acquired 31 matter. 02057_ Acquired 8 matter. 02068_ PW%W,L